fUST/lending_fUST_20250318
["ID","MTS","AMOUNT","RATE_DAILY","PERIOD"]
[356308532,1742242246695,-74043.18,9.041e-05,2]
[356308533,1742242246705,-1529.67,9.041e-05,2]
[356308534,1742242246714,-11739.36,9.041e-05,2]
[356308535,1742242246724,-579.12,9.041e-05,2]
[356308536,1742242246734,-535.96034079,9.041e-05,2]
[356308537,1742242246743,-4309.16,9.041e-05,2]
[356308538,1742242246753,-755.46,9.041e-05,2]
[356308539,1742242246762,-500.0,9.041e-05,2]
[356308540,1742242246771,-500.0,9.041e-05,2]
[356308541,1742242246781,-503.09373055,9.041e-05,2]
[356308542,1742242246790,-500.0,9.041e-05,2]
[356308543,1742242246799,-650.37,9.041e-05,2]
[356308544,1742242246808,-505.00511979,9.041e-05,2]
[356308545,1742242246818,-833.42,9.041e-05,2]
[356308546,1742242246828,-1007.71,9.041e-05,2]
[356308547,1742242246839,-500.0,9.041e-05,2]
[356308548,1742242246849,-500.0,9.041e-05,2]
[356308549,1742242246858,-6355.75,9.041e-05,2]
[356308550,1742242246869,-500.0,9.041e-05,2]
[356308551,1742242246878,-500.0,9.041e-05,2]
[356308552,1742242246887,-509.61823978,9.041e-05,2]
[356308553,1742242246897,-8467.35,9.041e-05,2]
[356308554,1742242246907,-525.73,9.041e-05,2]
[356308555,1742242246916,-539.27276088,9.041e-05,2]
[356308556,1742242246925,-500.0,9.041e-05,2]
[356308557,1742242246934,-520.33084208,9.041e-05,2]
[356308558,1742242246944,-1668.44,9.041e-05,2]
[356308559,1742242246953,-508.0034554,9.041e-05,2]
[356308560,1742242246962,-500.0,9.041e-05,2]
[356308561,1742242246972,-257.8232805,9.041e-05,2]
[356308562,1742242246981,-10970.68,9.041e-05,2]
[356308563,1742242246991,-500.0,9.041e-05,2]
[356308564,1742242247000,-513.74578559,9.041e-05,2]
[356308565,1742242247010,-1803.67,9.041e-05,2]
[356308566,1742242247019,-600.0,9.205e-05,2]
[356308567,1742242247029,-956.7700199,9.301e-05,2]
[356308568,1742242247038,-600.0,9.301e-05,2]
[356308569,1742242247047,-162.380719,9.31e-05,2]
[356308570,1742242247057,-500.0,9.315e-05,2]
[356308571,1742242247067,-500.0,9.315e-05,2]
[356308572,1742242247076,-500.0,9.315e-05,2]
[356308573,1742242247087,-500.0,9.315e-05,2]
[356308574,1742242247098,-500.0,9.315e-05,2]
[356308575,1742242247109,-500.0,9.315e-05,2]
[356308576,1742242247119,-500.0,9.315e-05,2]
[356308577,1742242247128,-500.0,9.315e-05,2]
[356308578,1742242247138,-500.0,9.315e-05,2]
[356308579,1742242247149,-500.0,9.315e-05,2]
[356308580,1742242247158,-500.0,9.315e-05,2]
[356308581,1742242247167,-897.4,9.315e-05,2]
[356308582,1742242247177,-500.0,9.315e-05,2]
[356308583,1742242247188,-931.12,9.315e-05,2]
[356308584,1742242247197,-580.03,9.315e-05,2]
[356308585,1742242247207,-1011.64,9.315e-05,2]
[356308586,1742242247218,-1507.27,9.315e-05,2]
[356308587,1742242247227,-500.0,9.315e-05,2]
[356308588,1742242247237,-500.0,9.315e-05,2]
[356308589,1742242247247,-500.0,9.315e-05,2]
[356308590,1742242247256,-851.7,9.315e-05,2]
[356308591,1742242247266,-500.0,9.315e-05,2]
[356308592,1742242247276,-500.0,9.315e-05,2]
[356308593,1742242247285,-657.28,9.315e-05,2]
[356308594,1742242247295,-500.0,9.315e-05,2]
[356308595,1742242247304,-1075.44,9.315e-05,2]
[356308596,1742242247314,-500.0,9.315e-05,2]
[356308597,1742242247323,-536.98,9.315e-05,2]
[356308598,1742242247335,-500.0,9.315e-05,2]
[356308599,1742242247345,-500.0,9.315e-05,2]
[356308600,1742242247354,-500.0,9.315e-05,2]
[356308601,1742242247363,-155.62403975,9.315e-05,2]
[356308602,1742242247372,-500.0,9.315e-05,2]
[356308603,1742242247381,-500.0,9.315e-05,2]
[356308604,1742242247392,-500.0,9.315e-05,2]
[356308605,1742242247403,-500.0,9.315e-05,2]
[356308606,1742242247413,-500.0,9.315e-05,2]
[356308607,1742242247422,-798.44,9.315e-05,2]
[356308608,1742242247432,-500.0,9.315e-05,2]
[356308609,1742242247441,-659.33,9.315e-05,2]
[356308610,1742242247451,-500.0,9.315e-05,2]
[356308611,1742242247460,-500.0,9.315e-05,2]
[356308612,1742242247469,-4218.08,9.315e-05,2]
[356308613,1742242247479,-500.0,9.315e-05,2]
[356308614,1742242247489,-1416.97,9.315e-05,2]
[356308615,1742242247501,-500.0,9.315e-05,2]
[356308616,1742242247512,-500.0,9.315e-05,2]
[356308617,1742242247521,-1829.06,9.315e-05,2]
[356308618,1742242247530,-500.0,9.315e-05,2]
[356308619,1742242247539,-3914.89,9.315e-05,2]
[356308620,1742242247549,-500.0,9.315e-05,2]
[356308621,1742242247558,-7847.86,9.315e-05,2]
[356308622,1742242247567,-500.0,9.315e-05,2]
[356308623,1742242247577,-533.21,9.315e-05,2]
[356308624,1742242247586,-500.0,9.315e-05,2]
[356308625,1742242247596,-180.84,9.315e-05,2]
[356308626,1742242247605,-500.0,9.315e-05,2]
[356308627,1742242247615,-500.0,9.315e-05,2]
[356308628,1742242247624,-500.0,9.315e-05,2]
[356308629,1742242247633,-500.0,9.315e-05,2]
[356308630,1742242247642,-701.16,9.315e-05,2]
[356308631,1742242247651,-796.19,9.315e-05,2]
[356308632,1742242247661,-529.03,9.315e-05,2]
[356308633,1742242247670,-500.0,9.315e-05,2]
[356308634,1742242247679,-944.57,9.315e-05,2]
[356308635,1742242247689,-654.84,9.315e-05,2]
[356308636,1742242247698,-500.0,9.315e-05,2]
[356308637,1742242247707,-2062.38,9.315e-05,2]
[356308638,1742242247717,-500.0,9.315e-05,2]
[356308639,1742242247726,-5194.41,9.315e-05,2]
[356308640,1742242247736,-500.0,9.315e-05,2]
[356308641,1742242247745,-4691.28,9.315e-05,2]
[356308642,1742242247755,-13471.72,9.315e-05,2]
[356308643,1742242247765,-3637.71,9.315e-05,2]
[356308644,1742242247774,-500.0,9.315e-05,2]
[356308645,1742242247783,-500.0,9.315e-05,2]
[356308646,1742242247793,-185.35,9.315e-05,2]
[356308647,1742242247802,-1185.91,9.315e-05,2]
[356308648,1742242247811,-7123.12,9.315e-05,2]
[356308649,1742242247821,-1438.12,9.315e-05,2]
[356308650,1742242247830,-500.0,9.315e-05,2]
[356308651,1742242247839,-2950.66,9.315e-05,2]
[356308652,1742242247849,-1346.77,9.315e-05,2]
[356308653,1742242247859,-500.0,9.315e-05,2]
[356308654,1742242247868,-377.10143304,9.315e-05,2]
[356308655,1742242247877,-500.0,9.315e-05,2]
[356308656,1742242247887,-500.0,9.315e-05,2]
[356308657,1742242247896,-500.0,9.315e-05,2]
[356308658,1742242247905,-590.74,9.315e-05,2]
[356308659,1742242247915,-3459.14,9.315e-05,2]
[356308660,1742242247924,-682.32,9.315e-05,2]
[356308661,1742242247933,-2687.82,9.315e-05,2]
[356308662,1742242247943,-3016.88,9.315e-05,2]
[356308663,1742242247952,-1107.82,9.315e-05,2]
[356308664,1742242247962,-14258.91,9.315e-05,2]
[356308665,1742242247971,-500.0,9.315e-05,2]
[356308666,1742242247980,-500.0,9.315e-05,2]
[356308667,1742242247990,-5053.58,9.315e-05,2]
[356308668,1742242247999,-74043.18,9.315e-05,2]
[356308669,1742242248009,-1529.67,9.315e-05,2]
[356308670,1742242248019,-11739.36,9.315e-05,2]
[356308671,1742242248028,-579.12,9.315e-05,2]
[356308672,1742242248038,-4309.16,9.315e-05,2]
[356308673,1742242248047,-755.46,9.315e-05,2]
[356308674,1742242248057,-500.0,9.315e-05,2]
[356308675,1742242248066,-500.0,9.315e-05,2]
[356308676,1742242248075,-593.3740415,9.315e-05,2]
[356308677,1742242248085,-650.37,9.315e-05,2]
[356308678,1742242248095,-833.42,9.315e-05,2]
[356308679,1742242248107,-1007.71,9.315e-05,2]
[356308680,1742242248116,-513.51195335,9.315e-05,2]
[356308681,1742242248125,-6355.75,9.315e-05,2]
[356308682,1742242248135,-500.0,9.315e-05,2]
[356308683,1742242248269,-500.0,9.315e-05,2]
[356308684,1742242248279,-8467.35,9.315e-05,2]
[356308685,1742242248288,-525.73,9.315e-05,2]
[356308686,1742242248298,-1668.44,9.315e-05,2]
[356308687,1742242248307,-500.0,9.315e-05,2]
[356308688,1742242248317,-10970.68,9.315e-05,2]
[356308689,1742242248326,-509.38987671,9.315e-05,2]
[356308690,1742242248336,-1803.67,9.315e-05,2]
[356308691,1742242248345,-600.0,9.397e-05,2]
[356308692,1742242248356,-600.0,9.493e-05,2]
[356308693,1742242248365,-500.0,9.58e-05,2]
[356308694,1742242248374,-500.0,9.58e-05,2]
[356308695,1742242248384,-165.58475678,9.588e-05,2]
[356308696,1742242248394,-1000.0,9.588e-05,2]
[356308697,1742242248404,-500.0,9.589e-05,2]
[356308698,1742242248414,-500.0,9.589e-05,2]
[356308699,1742242248423,-500.0,9.589e-05,2]
[356308700,1742242248432,-500.0,9.589e-05,2]
[356308701,1742242248443,-547.74,9.589e-05,2]
[356308702,1742242248452,-500.0,9.589e-05,2]
[356308703,1742242248462,-500.0,9.589e-05,2]
[356308704,1742242248471,-500.0,9.589e-05,2]
[356308705,1742242248481,-500.0,9.589e-05,2]
[356308706,1742242248491,-500.0,9.589e-05,2]
[356308707,1742242248500,-500.0,9.589e-05,2]
[356308708,1742242248509,-897.4,9.589e-05,2]
[356308709,1742242248518,-500.0,9.589e-05,2]
[356308710,1742242248528,-931.12,9.589e-05,2]
[356308711,1742242248537,-1011.64,9.589e-05,2]
[356308712,1742242248547,-1507.27,9.589e-05,2]
[356308713,1742242248557,-500.0,9.589e-05,2]
[356308714,1742242248567,-500.0,9.589e-05,2]
[356308715,1742242248576,-500.0,9.589e-05,2]
[356308716,1742242248586,-851.7,9.589e-05,2]
[356308717,1742242248595,-500.0,9.589e-05,2]
[356308718,1742242248604,-500.0,9.589e-05,2]
[356308719,1742242248614,-657.28,9.589e-05,2]
[356308720,1742242248623,-500.0,9.589e-05,2]
[356308721,1742242248634,-1075.44,9.589e-05,2]
[356308722,1742242248643,-500.0,9.589e-05,2]
[356308723,1742242248652,-536.98,9.589e-05,2]
[356308724,1742242248662,-500.0,9.589e-05,2]
[356308725,1742242248671,-500.0,9.589e-05,2]
[356308726,1742242248680,-500.0,9.589e-05,2]
[356308727,1742242248690,-500.0,9.589e-05,2]
[356308728,1742242248700,-500.0,9.589e-05,2]
[356308729,1742242248710,-500.0,9.589e-05,2]
[356308730,1742242248719,-500.0,9.589e-05,2]
[356308731,1742242248729,-500.0,9.589e-05,2]
[356308732,1742242248739,-798.44,9.589e-05,2]
[356308733,1742242248748,-500.0,9.589e-05,2]
[356308734,1742242248759,-659.33,9.589e-05,2]
[356308735,1742242248769,-500.0,9.589e-05,2]
[356308736,1742242248779,-500.0,9.589e-05,2]
[356308737,1742242248789,-4218.08,9.589e-05,2]
[356308738,1742242248799,-500.0,9.589e-05,2]
[356308739,1742242248808,-1416.97,9.589e-05,2]
[356308740,1742242248818,-500.0,9.589e-05,2]
[356308741,1742242248828,-500.0,9.589e-05,2]
[356308742,1742242248838,-1829.06,9.589e-05,2]
[356308743,1742242248848,-500.0,9.589e-05,2]
[356308744,1742242248858,-3914.89,9.589e-05,2]
[356308745,1742242248868,-500.0,9.589e-05,2]
[356308746,1742242248878,-7847.86,9.589e-05,2]
[356308747,1742242248888,-500.0,9.589e-05,2]
[356308748,1742242248898,-533.21,9.589e-05,2]
[356308749,1742242248907,-500.0,9.589e-05,2]
[356308750,1742242248918,-500.0,9.589e-05,2]
[356308751,1742242248927,-500.0,9.589e-05,2]
[356308752,1742242248937,-500.0,9.589e-05,2]
[356308753,1742242248947,-474.15307062,9.589e-05,2]
[356308754,1742242248957,-701.16,9.589e-05,2]
[356308755,1742242248968,-796.19,9.589e-05,2]
[356308756,1742242248978,-529.03,9.589e-05,2]
[356308757,1742242248988,-500.0,9.589e-05,2]
[356308758,1742242248998,-944.57,9.589e-05,2]
[356308759,1742242249008,-654.84,9.589e-05,2]
[356308760,1742242249017,-500.0,9.589e-05,2]
[356308761,1742242249027,-2062.38,9.589e-05,2]
[356308762,1742242249037,-500.0,9.589e-05,2]
[356308763,1742242249047,-5194.41,9.589e-05,2]
[356308764,1742242249056,-500.0,9.589e-05,2]
[356308765,1742242249066,-4691.28,9.589e-05,2]
[356308766,1742242249075,-13471.72,9.589e-05,2]
[356308767,1742242249084,-3637.71,9.589e-05,2]
[356308768,1742242249094,-500.0,9.589e-05,2]
[356308769,1742242249107,-500.0,9.589e-05,2]
[356308770,1742242249116,-1185.91,9.589e-05,2]
[356308771,1742242249126,-7123.12,9.589e-05,2]
[356308772,1742242249136,-1438.12,9.589e-05,2]
[356308773,1742242249146,-2950.66,9.589e-05,2]
[356308774,1742242249156,-1346.77,9.589e-05,2]
[356308775,1742242249166,-298.39867949,9.589e-05,2]
[356308776,1742242249175,-500.0,9.589e-05,2]
[356308777,1742242249185,-500.0,9.589e-05,2]
[356308778,1742242249195,-590.74,9.589e-05,2]
[356308779,1742242249205,-3459.14,9.589e-05,2]
[356308780,1742242249215,-682.32,9.589e-05,2]
[356308781,1742242249225,-2687.82,9.589e-05,2]
[356308782,1742242249235,-3016.88,9.589e-05,2]
[356308783,1742242249244,-1107.82,9.589e-05,2]
[356308784,1742242249255,-14258.91,9.589e-05,2]
[356308785,1742242249265,-500.0,9.589e-05,2]
[356308786,1742242249274,-500.0,9.589e-05,2]
[356308787,1742242249283,-5053.58,9.589e-05,2]
[356308788,1742242249293,-74043.18,9.589e-05,2]
[356308789,1742242249302,-1529.67,9.589e-05,2]
[356308790,1742242249311,-11739.36,9.589e-05,2]
[356308791,1742242249321,-579.12,9.589e-05,2]
[356308792,1742242249330,-4309.16,9.589e-05,2]
[356308793,1742242249340,-755.46,9.589e-05,2]
[356308794,1742242249349,-500.0,9.589e-05,2]
[356308795,1742242249358,-500.0,9.589e-05,2]
[356308796,1742242249369,-650.37,9.589e-05,2]
[356308797,1742242249378,-833.42,9.589e-05,2]
[356308798,1742242249388,-1007.71,9.589e-05,2]
[356308799,1742242249397,-6355.75,9.589e-05,2]
[356308800,1742242249407,-500.0,9.589e-05,2]
[356308801,1742242249416,-500.0,9.589e-05,2]
[356308802,1742242249425,-8467.35,9.589e-05,2]
[356308803,1742242249435,-525.73,9.589e-05,2]
[356308804,1742242249446,-1668.44,9.589e-05,2]
[356308805,1742242249456,-500.0,9.589e-05,2]
[356308806,1742242249465,-10970.68,9.589e-05,2]
[356308807,1742242249474,-1500.0,9.6e-05,2]
[356308808,1742242249485,-1500.0,9.6e-05,2]
[356308809,1742242249494,-1500.0,9.6e-05,2]
[356308810,1742242249503,-1500.0,9.6e-05,2]
[356308811,1742242249512,-1500.0,9.6e-05,2]
[356308812,1742242249522,-1500.0,9.6e-05,2]
[356308813,1742242249532,-1500.0,9.6e-05,2]
[356308814,1742242249541,-1500.0,9.6e-05,2]
[356308815,1742242249550,-1033.25,9.6e-05,2]
[356308816,1742242249560,-1500.0,9.6e-05,2]
[356308817,1742242249570,-150.3,9.6e-05,2]
[356308818,1742242249579,-150.3,9.627e-05,2]
[356308819,1742242249588,-150.3,9.655e-05,2]
[356308820,1742242249598,-150.3,9.682e-05,2]
[356308821,1742242249607,-150.3,9.71e-05,2]
[356308822,1742242249616,-248.5,9.737e-05,2]
[356308823,1742242249626,-500.0,9.78e-05,2]
[356308824,1742242249635,-587.0,9.823e-05,2]
[356308825,1742242249645,-155.15948772,9.863e-05,2]
[356308826,1742242249654,-500.0,9.863e-05,2]
[356308827,1742242249664,-500.0,9.863e-05,2]
[356308828,1742242249673,-500.0,9.863e-05,2]
[356308829,1742242249683,-500.0,9.863e-05,2]
[356308830,1742242249692,-500.0,9.863e-05,2]
[356308831,1742242249701,-500.0,9.863e-05,2]
[356308832,1742242249711,-500.0,9.863e-05,2]
[356308833,1742242249720,-500.0,9.863e-05,2]
[356308834,1742242249729,-500.0,9.863e-05,2]
[356308835,1742242249739,-897.4,9.863e-05,2]
[356308836,1742242249748,-500.0,9.863e-05,2]
[356308837,1742242249757,-931.12,9.863e-05,2]
[356308838,1742242249767,-1011.64,9.863e-05,2]
[356308839,1742242249776,-1507.27,9.863e-05,2]
[356308840,1742242249786,-500.0,9.863e-05,2]
[356308841,1742242249795,-500.0,9.863e-05,2]
[356308842,1742242249804,-500.0,9.863e-05,2]
[356308843,1742242249813,-851.7,9.863e-05,2]
[356308844,1742242249823,-500.0,9.863e-05,2]
[356308845,1742242249832,-500.0,9.863e-05,2]
[356308846,1742242249841,-657.28,9.863e-05,2]
[356308847,1742242249851,-500.0,9.863e-05,2]
[356308848,1742242249860,-1075.44,9.863e-05,2]
[356308849,1742242249870,-500.0,9.863e-05,2]
[356308850,1742242249879,-536.98,9.863e-05,2]
[356308851,1742242249889,-500.0,9.863e-05,2]
[356308852,1742242249898,-500.0,9.863e-05,2]
[356308853,1742242249908,-500.0,9.863e-05,2]
[356308854,1742242249917,-500.0,9.863e-05,2]
[356308855,1742242249927,-500.0,9.863e-05,2]
[356308856,1742242249937,-500.0,9.863e-05,2]
[356308857,1742242249946,-500.0,9.863e-05,2]
[356308858,1742242249956,-500.0,9.863e-05,2]
[356308859,1742242249965,-798.44,9.863e-05,2]
[356308860,1742242249974,-218.47541464,9.863e-05,2]
[356308861,1742242252036,-306.78865297,8.219e-05,2]
[356308862,1742242252046,-500.0,8.219e-05,2]
[356308863,1742242252055,-500.0,8.219e-05,2]
[356308864,1742242252065,-249.03,8.219e-05,2]
[356308865,1742242252074,-500.0,8.219e-05,2]
[356308866,1742242252084,-500.0,8.219e-05,2]
[356308867,1742242252094,-500.0,8.219e-05,2]
[356308868,1742242252108,-501.23,8.219e-05,2]
[356308869,1742242252117,-500.0,8.219e-05,2]
[356308870,1742242252127,-500.0,8.219e-05,2]
[356308871,1742242252137,-500.0,8.219e-05,2]
[356308872,1742242252147,-500.0,8.493e-05,2]
[356308873,1742242252157,-500.0,8.493e-05,2]
[356308874,1742242252166,-500.0,8.493e-05,2]
[356308875,1742242252179,-500.0,8.493e-05,2]
[356308876,1742242252190,-500.0,8.767e-05,2]
[356308877,1742242252200,-500.0,9.041e-05,2]
[356308878,1742242252210,-500.0,9.315e-05,2]
[356308879,1742242252219,-1803.67,9.589e-05,2]
[356308880,1742242252229,-459.64,9.589e-05,2]
[356308881,1742242252239,-281.52458536,9.863e-05,2]
[356308882,1742242252249,-659.33,9.863e-05,2]
[356308883,1742242252258,-453.33156309,9.863e-05,2]
[356308884,1742242252268,-500.0,9.863e-05,2]
[356308885,1742242252277,-500.0,9.863e-05,2]
[356308886,1742242252287,-1416.97,9.863e-05,2]
[356308887,1742242252296,-500.0,9.863e-05,2]
[356308888,1742242252306,-500.0,9.863e-05,2]
[356308889,1742242252315,-1829.06,9.863e-05,2]
[356308890,1742242252324,-500.0,9.863e-05,2]
[356308891,1742242252333,-3914.89,9.863e-05,2]
[356308892,1742242252343,-500.0,9.863e-05,2]
[356308893,1742242252352,-7847.86,9.863e-05,2]
[356308894,1742242252361,-500.0,9.863e-05,2]
[356308895,1742242252371,-533.21,9.863e-05,2]
[356308896,1742242252380,-500.0,9.863e-05,2]
[356308897,1742242252390,-500.0,9.863e-05,2]
[356308898,1742242252399,-500.0,9.863e-05,2]
[356308899,1742242252409,-701.16,9.863e-05,2]
[356308900,1742242252418,-796.19,9.863e-05,2]
[356308901,1742242252427,-529.03,9.863e-05,2]
[356308902,1742242252437,-364.88160402,9.863e-05,2]
[356308903,1742242252446,-944.57,9.863e-05,2]
[356308904,1742242252455,-654.84,9.863e-05,2]
[356308905,1742242252465,-500.0,9.863e-05,2]
[356308906,1742242252474,-606.47002523,9.863e-05,2]
[356308907,1742242252821,-500.0,8.219e-05,2]
[356308908,1742242252831,-500.0,8.219e-05,2]
[356308909,1742242252840,-500.0,8.219e-05,2]
[356308910,1742242252849,-500.0,8.219e-05,2]
[356308911,1742242252859,-500.0,8.219e-05,2]
[356308912,1742242252868,-469.75809661,8.493e-05,2]
[356308913,1742242252877,-500.0,8.493e-05,2]
[356308914,1742242252887,-624.38,8.767e-05,2]
[356308915,1742242252896,-1455.90997477,9.863e-05,2]
[356308916,1742242252906,-500.0,9.863e-05,2]
[356308917,1742242252915,-5194.41,9.863e-05,2]
[356308918,1742242252925,-500.0,9.863e-05,2]
[356308919,1742242252935,-4691.28,9.863e-05,2]
[356308920,1742242252944,-13471.72,9.863e-05,2]
[356308921,1742242252954,-3637.71,9.863e-05,2]
[356308922,1742242252963,-500.0,9.863e-05,2]
[356308923,1742242252973,-500.0,9.863e-05,2]
[356308924,1742242252983,-1185.91,9.863e-05,2]
[356308925,1742242252993,-5301.44364013,9.863e-05,2]
[356308926,1742242253005,-500.0,9.863e-05,2]
[356308927,1742242253116,-355.37663404,8.219e-05,2]
[356308928,1742242253128,-144.62336596,8.219e-05,2]
[356308929,1742242253140,-500.0,8.219e-05,2]
[356308930,1742242253150,-264.78425915,8.219e-05,2]
[356308931,1742242253159,-500.0,8.219e-05,2]
[356308932,1742242253169,-500.0,8.493e-05,2]
[356308933,1742242253183,-500.0,8.493e-05,2]
[356308934,1742242253194,-500.0,8.493e-05,2]
[356308935,1742242253203,-546.65,8.767e-05,2]
[356308936,1742242253212,-893.94237439,9.863e-05,2]
[356308937,1742242253420,-500.0,8.219e-05,2]
[356308938,1742242253430,-500.0,8.219e-05,2]
[356308939,1742242253440,-500.0,8.219e-05,2]
[356308940,1742242253450,-500.0,8.219e-05,2]
[356308941,1742242253459,-500.0,8.219e-05,2]
[356308942,1742242253469,-500.0,8.219e-05,2]
[356308943,1742242253478,-257.30154777,8.473e-05,2]
[356308944,1742242253488,-500.0,8.493e-05,2]
[356308945,1742242253497,-500.0,8.493e-05,2]
[356308946,1742242253507,-500.0,8.493e-05,2]
[356308947,1742242253516,-500.0,8.767e-05,2]
[356308948,1742242253526,-500.0,8.767e-05,2]
[356308949,1742242253535,-500.0,9.041e-05,2]
[356308950,1742242253545,-642.0,9.315e-05,2]
[356308951,1742242253555,-427.73398548,9.863e-05,2]
[356308952,1742242253565,-1438.12,9.863e-05,2]
[356308953,1742242253575,-1883.81586265,9.863e-05,2]
[356308954,1742242253591,-500.0,9.863e-05,2]
[356308955,1742242253609,-500.0,8.493e-05,2]
[356308956,1742242253618,-566.84413735,9.863e-05,2]
[356308957,1742242253628,-1346.77,9.863e-05,2]
[356308958,1742242253637,-244.45138112,9.863e-05,2]
[356308966,1742242643392,24470.4866032,7.397e-05,2]
[356308972,1742242845379,1484.24,0.00014,30]
[356308979,1742242955620,8077.6803439,7.161e-05,2]
[356309042,1742243432092,-250.0,8.1e-05,2]
[356309043,1742243432102,-300.0,8.116e-05,2]
[356309044,1742243432111,-500.0,8.117e-05,2]
[356309045,1742243432122,-180.99783472,8.117e-05,2]
[356309047,1742243432131,-500.0,8.117e-05,2]
[356309048,1742243432141,-227.40659025,8.117e-05,2]
[356309049,1742243432151,-500.0,8.117e-05,2]
[356309050,1742243432160,-320.4109366,8.117e-05,2]
[356309051,1742243432170,-115208.68,8.118e-05,2]
[356309052,1742243432180,-219225.63653533,8.119e-05,2]
[356309053,1742243432189,-175.4082,8.119e-05,2]
[356309054,1742243432199,-175.4082,8.144e-05,2]
[356309055,1742243432209,-175.4082,8.169e-05,2]
[356309056,1742243432219,-500.0,8.193e-05,2]
[356309057,1742243432229,-500.0,8.193e-05,2]
[356309058,1742243432238,-500.0,8.193e-05,2]
[356309059,1742243432248,-500.0,8.193e-05,2]
[356309060,1742243432258,-398.36704588,8.193e-05,2]
[356309061,1742243432267,-500.0,8.193e-05,2]
[356309062,1742243432277,-500.0,8.193e-05,2]
[356309063,1742243432287,-500.0,8.193e-05,2]
[356309064,1742243432296,-175.4082,8.194e-05,2]
[356309065,1742243432307,-151.0,8.214e-05,2]
[356309066,1742243432317,-600.0,8.214e-05,2]
[356309067,1742243432327,-500.0,8.219e-05,2]
[356309068,1742243432337,-500.0,8.219e-05,2]
[356309069,1742243432347,-500.0,8.219e-05,2]
[356309070,1742243432356,-513.67752175,8.219e-05,2]
[356309071,1742243432366,-500.0,8.219e-05,2]
[356309072,1742243432375,-500.0,8.219e-05,2]
[356309073,1742243432384,-518.14678106,8.219e-05,2]
[356309074,1742243432394,-514.53693639,8.219e-05,2]
[356309075,1742243432593,-500.0,8.219e-05,2]
[356309076,1742243432604,-500.0,8.219e-05,2]
[356309077,1742243432614,-500.0,8.219e-05,2]
[356309078,1742243432624,-500.0,8.219e-05,2]
[356309079,1742243432634,-500.0,8.219e-05,2]
[356309080,1742243432643,-500.0,8.219e-05,2]
[356309081,1742243432653,-500.0,8.219e-05,2]
[356309082,1742243432662,-544.81434492,8.219e-05,2]
[356309083,1742243432671,-482.08031948,8.219e-05,2]
[356309084,1742243432681,-500.0,8.219e-05,2]
[356309085,1742243432690,-500.0,8.219e-05,2]
[356309086,1742243432700,-509.33633612,8.219e-05,2]
[356309087,1742243432709,-500.0,8.219e-05,2]
[356309088,1742243432719,-500.0,8.219e-05,2]
[356309089,1742243432728,-500.0,8.219e-05,2]
[356309090,1742243432737,-500.0,8.219e-05,2]
[356309091,1742243432747,-500.0,8.219e-05,2]
[356309092,1742243432756,-502.81069154,8.219e-05,2]
[356309093,1742243432765,-500.0,8.219e-05,2]
[356309094,1742243432775,-500.0,8.219e-05,2]
[356309095,1742243432784,-500.0,8.219e-05,2]
[356309096,1742243432793,-500.0,8.219e-05,2]
[356309097,1742243432804,-500.0,8.219e-05,2]
[356309098,1742243432815,-500.0,8.219e-05,2]
[356309099,1742243432825,-500.0,8.219e-05,2]
[356309100,1742243432834,-500.0,8.219e-05,2]
[356309101,1742243432843,-500.0,8.219e-05,2]
[356309102,1742243432853,-500.0,8.219e-05,2]
[356309103,1742243432863,-500.0,8.219e-05,2]
[356309104,1742243432872,-500.0,8.219e-05,2]
[356309105,1742243432881,-532.69072457,8.219e-05,2]
[356309106,1742243432892,-500.0,8.219e-05,2]
[356309107,1742243432902,-500.0,8.219e-05,2]
[356309108,1742243432912,-511.97411298,8.219e-05,2]
[356309109,1742243432922,-500.0,8.219e-05,2]
[356309110,1742243432934,-500.0,8.219e-05,2]
[356309111,1742243432944,-500.0,8.219e-05,2]
[356309112,1742243432954,-483.73157147,8.219e-05,2]